fUST/lending_fUST_20251205
["ID","MTS","AMOUNT","RATE_DAILY","PERIOD"]
[396246074,1764874146408,-500.0,0.00013699,2]
[396246075,1764874146427,-500.82275604,0.00013699,2]
[396246076,1764874146446,-501.21548759,0.00013699,2]
[396246077,1764874146464,-506.04820386,0.00013699,2]
[396246078,1764874146483,-501.13483384,0.00013699,2]
[396246079,1764874146503,-157.63695999,0.00013699,2]
[396246080,1764874146522,-634.83914761,0.00013699,2]
[396246081,1764874146541,-501.48849571,0.00013699,2]
[396246082,1764874146560,-501.33772315,0.00013699,2]
[396246083,1764874146580,-201.01098032,0.00013699,2]
[396246115,1764874232056,-500.0,0.00013273,2]
[396246116,1764874232066,-500.0,0.00013273,2]
[396246117,1764874232075,-500.0,0.00013273,2]
[396246118,1764874232085,-259.0,0.00013273,2]
[396246119,1764874232094,-300.58126877,0.00013699,2]
[396246120,1764874232106,-500.35430401,0.00013699,2]
[396246121,1764874232115,-300.0,0.0001382,2]
[396246122,1764874232125,-500.0,0.00013821,2]
[396246124,1764874232134,-500.0,0.00013821,2]
[396246126,1764874232143,-500.0,0.00013821,2]
[396246128,1764874232152,-664.70484937,0.00013821,2]
[396246129,1764874232162,-500.0,0.0001511,2]
[396246130,1764874232170,-252.18049464,0.00015111,2]
[396246131,1764874232179,-945.90058894,0.00015325,2]
[396246132,1764874232190,-177.0,0.00015486,2]
[396246133,1764874232199,-188.99674566,0.00016152,2]
[396246134,1764874232209,-339.85394805,0.00016152,2]
[396246135,1764874232218,-241.08226665,0.00016193,2]
[396246136,1764874232227,-287.00134787,0.00016193,2]
[396246137,1764874232237,-300.0,0.00016438,2]
[396246138,1764874232246,-300.0,0.00016438,2]
[396246139,1764874232255,-373.89251054,0.00016438,2]
[396246140,1764874232265,-4801.7319263,0.0001668,2]
[396246141,1764874232274,-1000.0,0.00016791,2]
[396246142,1764874232283,-204.0,0.00017486,2]
[396246143,1764874232293,-594.57328424,0.00017824,3]
[396246144,1764874232303,-182.96422023,0.00017897,2]
[396246145,1764874232313,-329.00626081,0.00017897,2]
[396246146,1764874232323,-217.81352294,0.00017897,2]
[396246147,1764874232333,-391.67227695,0.00017897,2]
[396246148,1764874232342,-1000.0,0.00018144,2]
[396246149,1764874232352,-500.0,0.00018144,2]
[396246150,1764874232362,-500.0,0.00018144,2]
[396246151,1764874232371,-500.0,0.00018144,2]
[396246152,1764874232381,-500.0,0.00018144,2]
[396246153,1764874232390,-2334.9729592,0.00018144,2]
[396246154,1764874232400,-500.0,0.00018144,2]
[396246155,1764874232410,-200.0,0.00018144,2]
[396246156,1764874232419,-201.93286099,0.00018144,2]
[396246157,1764874232429,-500.0,0.00018144,2]
[396246158,1764874232440,-500.0,0.00018144,2]
[396246159,1764874232450,-500.0,0.00018144,2]
[396246161,1764874232459,-500.0,0.00018144,2]
[396246162,1764874232468,-500.0,0.00018144,2]
[396246163,1764874232478,-215.49991647,0.00018541,2]
[396246164,1764874232487,-200.0,0.00018692,2]
[396246165,1764874232496,-1766.45,0.00018741,2]
[396246166,1764874232506,-500.0,0.00018741,2]
[396246167,1764874232515,-500.0,0.00018741,2]
[396246168,1764874232525,-252.18049464,0.00018779,2]
[396246169,1764874232534,-206.79718018,0.00018787,2]
[396246170,1764874232542,-1071.4112137,0.00018799,2]
[396246171,1764874232551,-399.12955785,0.00018821,2]
[396246172,1764874232560,-163.65681146,0.00018839,2]
[396246174,1764874232573,-654.62724585,0.00018839,2]
[396246177,1764874232589,-1472.91130317,0.00018839,2]
[396246180,1764874232604,-196.2505799,0.0001913,2]
[396246181,1764874232616,-150.0,0.00019178,2]
[396246182,1764874232631,-200.0,0.0001924,2]
[396246183,1764874232645,-239.0641557,0.00019272,2]
[396246184,1764874232659,-185.8480568,0.00019415,2]
[396246187,1764874232673,-500.0,0.00019415,2]
[396246189,1764874232688,-2028.93181218,0.00019419,2]
[396246191,1764874232704,-231.0,0.00019486,2]
[396246194,1764874232716,-151.0,0.000195,2]
[396246196,1764874232731,-151.0,0.000195,2]
[396246198,1764874232745,-151.0,0.000195,2]
[396246201,1764874232759,-151.0,0.000195,2]
[396246203,1764874232771,-151.0,0.000195,2]
[396246205,1764874232783,-151.0,0.000195,2]
[396246208,1764874232795,-151.0,0.000195,2]
[396246210,1764874232809,-151.0,0.000195,2]
[396246213,1764874232824,-500.0,0.00019515,2]
[396246215,1764874232837,-500.0,0.00019515,2]
[396246218,1764874232852,-500.0,0.00019515,2]
[396246221,1764874232869,-500.0,0.00019515,2]
[396246223,1764874232879,-500.0,0.00019515,2]
[396246225,1764874232890,-500.0,0.00019515,2]
[396246227,1764874232903,-500.0,0.00019515,2]
[396246229,1764874232918,-500.0,0.00019515,2]
[396246232,1764874232930,-500.0,0.00019515,2]
[396246234,1764874232942,-500.0,0.00019515,2]
[396246236,1764874232955,-500.0,0.00019515,2]
[396246239,1764874232968,-500.0,0.00019515,2]
[396246241,1764874232980,-500.0,0.00019515,2]
[396246243,1764874232996,-500.0,0.00019515,2]
[396246245,1764874233008,-500.0,0.00019515,2]
[396246248,1764874233026,-500.0,0.00019515,2]
[396246250,1764874233038,-583.60452845,0.00019515,2]
[396246253,1764874233051,-500.0,0.00019515,2]
[396246255,1764874233063,-500.0,0.00019515,2]
[396246257,1764874233075,-500.0,0.00019515,2]
[396246259,1764874233087,-500.0,0.00019515,2]
[396246260,1764874233099,-500.0,0.00019515,2]
[396246261,1764874233116,-500.0,0.00019515,2]
[396246262,1764874233128,-500.0,0.00019515,2]
[396246263,1764874233141,-500.0,0.00019515,2]
[396246265,1764874233154,-500.0,0.00019515,2]
[396246266,1764874233168,-500.0,0.00019515,2]
[396246267,1764874233182,-500.0,0.00019515,2]
[396246268,1764874233194,-500.0,0.00019515,2]
[396246270,1764874233207,-500.0,0.00019515,2]
[396246272,1764874233220,-500.0,0.00019515,2]
[396246274,1764874233233,-500.0,0.00019515,2]
[396246276,1764874233245,-500.0,0.00019515,2]
[396246277,1764874233257,-500.0,0.00019515,2]
[396246278,1764874233269,-500.0,0.00019515,2]
[396246279,1764874233282,-500.0,0.00019515,2]
[396246280,1764874233294,-500.0,0.00019515,2]
[396246281,1764874233306,-500.0,0.00019515,2]
[396246282,1764874233318,-500.0,0.00019515,2]
[396246284,1764874233331,-500.0,0.00019515,2]
[396246285,1764874233343,-500.0,0.00019515,2]
[396246286,1764874233355,-500.0,0.00019515,2]
[396246287,1764874233368,-500.0,0.00019515,2]
[396246288,1764874233381,-500.0,0.00019515,2]
[396246289,1764874233393,-500.0,0.00019515,2]
[396246290,1764874233406,-500.0,0.00019515,2]
[396246291,1764874233419,-500.0,0.00019515,2]
[396246292,1764874233433,-449.40942224,0.00019515,2]
[396246293,1764874233446,-500.0,0.00019515,2]
[396246294,1764874233459,-335.23356893,0.00019515,2]
[396246295,1764874233472,-500.0,0.00019515,2]
[396246296,1764874233485,-500.0,0.00019515,2]
[396246297,1764874233497,-500.0,0.00019515,2]
[396246298,1764874233509,-500.0,0.00019515,2]
[396246299,1764874233521,-500.0,0.00019515,2]
[396246300,1764874233534,-500.0,0.00019515,2]
[396246301,1764874233547,-500.0,0.00019515,2]
[396246302,1764874233561,-500.0,0.00019515,2]
[396246303,1764874233574,-538.9569974,0.00019515,2]
[396246304,1764874233587,-985.7863706,0.00019516,2]
[396246305,1764874233599,-500.0,0.00019517,2]
[396246306,1764874233611,-216.77313402,0.00019517,2]
[396246307,1764874233624,-410.72581574,0.00019518,2]
[396246308,1764874233637,-500.0,0.00019518,2]
[396246309,1764874233650,-500.0,0.00019518,2]
[396246310,1764874233663,-500.0,0.00019518,2]
[396246311,1764874233675,-500.0,0.00019518,2]
[396246312,1764874233689,-500.0,0.00019518,2]
[396246313,1764874233702,-581.71554165,0.00019518,2]
[396246314,1764874233715,-590.13,0.00019519,2]
[396246315,1764874233728,-500.0,0.00019519,2]
[396246316,1764874233740,-260335.02089726,0.00019519,2]
[396246319,1764874238152,-861.70509746,0.00016973,2]
[396246320,1764874238161,-500.0,0.00018144,2]
[396246321,1764874238172,-204.01190254,0.00018144,2]
[396246322,1764874238208,-295.98809746,0.00018144,2]
[396246323,1764874238218,-181368.15611947,0.00019519,2]
[396246330,1764874238317,-448296.82298327,0.00019519,2]
[396246332,1764874238327,-658.176,0.00019519,2]
[396246334,1764874238338,-184.44,0.00019519,2]
[396246335,1764874238348,-151.0,0.00019519,2]
[396246336,1764874238358,-151.0,0.00019519,2]
[396246337,1764874238367,-151.0,0.00019519,2]
[396246338,1764874238377,-151.0,0.00019519,2]
[396246339,1764874238386,-151.0,0.00019519,2]
[396246340,1764874238395,-151.0,0.00019519,2]
[396246342,1764874238406,-151.0,0.00019519,2]
[396246343,1764874238416,-151.0,0.00019519,2]
[396246344,1764874238425,-151.0,0.00019519,2]
[396246345,1764874238436,-151.0,0.00019519,2]
[396246346,1764874238447,-151.0,0.00019519,2]
[396246348,1764874238456,-151.0,0.00019519,2]
[396246349,1764874238466,-500.0,0.00019532,2]
[396246350,1764874238475,-1000.0,0.00019533,2]
[396246351,1764874238485,-2154.0,0.00019533,2]
[396246352,1764874238494,-150.267,0.00019533,2]
[396246353,1764874238504,-414.0,0.00019533,2]
[396246354,1764874238514,-500.0,0.00019589,2]
[396246355,1764874238523,-151.0,0.000196,2]
[396246356,1764874238533,-151.0,0.000196,2]
[396246358,1764874238542,-151.0,0.000196,2]
[396246360,1764874238551,-151.0,0.000196,2]
[396246362,1764874238564,-151.0,0.000196,2]
[396246363,1764874238573,-151.0,0.000196,2]
[396246364,1764874238583,-151.0,0.000196,2]
[396246365,1764874238593,-151.0,0.000196,2]
[396246366,1764874238602,-151.0,0.000196,2]
[396246367,1764874238611,-151.0,0.000196,2]
[396246368,1764874238620,-151.0,0.000196,2]
[396246369,1764874238630,-151.0,0.000196,2]
[396246370,1764874238639,-151.0,0.000196,2]
[396246371,1764874238648,-1000.0,0.00019606,2]
[396246372,1764874238658,-1002.14727322,0.00019606,2]
[396246373,1764874238667,-600.0,0.00019606,2]
[396246374,1764874238677,-534.81537665,0.00019615,2]
[396246375,1764874238687,-1766.45,0.00019616,2]
[396246376,1764874238700,-1766.45,0.00019616,2]
[396246377,1764874238710,-1766.45,0.00019616,2]
[396246378,1764874238722,-1766.45,0.00019616,2]
[396246379,1764874238732,-500.0,0.00019616,2]
[396246380,1764874238741,-500.0,0.00019616,2]
[396246381,1764874238751,-1000.0,0.00019616,2]
[396246382,1764874238761,-1000.0,0.00019616,2]
[396246383,1764874238771,-1000.0,0.00019616,2]
[396246384,1764874238779,-1000.0,0.00019616,2]
[396246385,1764874238788,-1000.0,0.00019616,2]
[396246386,1764874238798,-281.68499545,0.00019616,2]
[396246387,1764874238807,-500.0,0.00019616,2]
[396246388,1764874238816,-500.0,0.00019616,2]
[396246389,1764874238825,-500.0,0.00019616,2]
[396246390,1764874238835,-500.0,0.00019616,2]
[396246391,1764874238845,-500.0,0.00019616,2]
[396246392,1764874238855,-500.0,0.00019616,2]
[396246393,1764874238864,-500.0,0.00019617,2]
[396246394,1764874238874,-1040.7893352,0.00019618,2]
[396246395,1764874238884,-4801.7319265,0.00019618,2]
[396246396,1764874238894,-1766.45,0.00019618,2]
[396246397,1764874238904,-1766.45,0.00019618,2]
[396246398,1764874238914,-1766.45,0.00019618,2]
[396246399,1764874238923,-1766.45,0.00019618,2]
[396246400,1764874238933,-1766.45,0.00019618,2]
[396246401,1764874238944,-1766.45,0.00019618,2]
[396246402,1764874238954,-1766.45,0.00019618,2]
[396246403,1764874238964,-1766.45,0.00019618,2]
[396246404,1764874238974,-1766.45,0.00019618,2]
[396246405,1764874238983,-1766.45,0.00019618,2]
[396246406,1764874238993,-1766.45,0.00019618,2]
[396246407,1764874239002,-1766.45,0.00019618,2]
[396246408,1764874239012,-1766.45,0.00019618,2]
[396246409,1764874239021,-1766.45,0.00019618,2]
[396246410,1764874239031,-1766.45,0.00019618,2]
[396246411,1764874239040,-1766.45,0.00019618,2]
[396246412,1764874239049,-1766.45,0.00019618,2]
[396246413,1764874239059,-1766.45,0.00019618,2]
[396246414,1764874239068,-1766.60558273,0.00019618,2]
[396246415,1764874239078,-500.0,0.00019618,2]
[396246416,1764874239088,-500.0,0.00019618,2]
[396246417,1764874239097,-500.0,0.00019618,2]
[396246418,1764874239106,-385.36436139,0.00019618,2]
[396246419,1764874239119,-151.0,0.00019618,2]
[396246420,1764874239129,-193.445645,0.00019618,2]
[396246421,1764874239138,-151.0,0.00019618,2]
[396246422,1764874239149,-151.0,0.00019618,2]
[396246423,1764874239159,-151.0,0.00019618,2]
[396246424,1764874239169,-1000.0,0.00019618,2]
[396246425,1764874239178,-1000.0,0.00019618,2]
[396246426,1764874239188,-1000.0,0.00019618,2]
[396246427,1764874239199,-1000.0,0.00019618,2]
[396246428,1764874239208,-1000.0,0.00019618,2]
[396246429,1764874239218,-1000.0,0.00019618,2]
[396246430,1764874239227,-1000.0,0.00019618,2]
[396246431,1764874239237,-1000.0,0.00019618,2]
[396246432,1764874239246,-840.16456594,0.00019618,2]
[396246433,1764874239255,-500.0,0.00019618,2]
[396246434,1764874239265,-500.0,0.00019618,2]
[396246435,1764874239274,-500.0,0.00019618,2]
[396246436,1764874239284,-500.0,0.00019618,2]
[396246437,1764874239293,-500.0,0.00019618,2]
[396246438,1764874239303,-500.0,0.00019618,2]
[396246439,1764874239313,-483.28799497,0.00019618,2]
[396246440,1764874239323,-151.0,0.00019618,2]
[396246441,1764874239333,-151.0,0.00019618,2]
[396246442,1764874239343,-500.0,0.00019618,2]
[396246443,1764874239352,-500.0,0.00019618,2]
[396246444,1764874239362,-192.16257049,0.00019618,2]
[396246445,1764874239372,-151.0,0.00019618,2]
[396246446,1764874239381,-151.0,0.00019618,2]
[396246447,1764874239391,-151.0,0.00019618,2]
[396246448,1764874239400,-151.0,0.00019618,2]
[396246449,1764874239410,-501.265825,0.00019618,2]
[396246450,1764874239419,-501.265825,0.00019618,2]
[396246451,1764874239429,-501.265825,0.00019618,2]
[396246452,1764874239440,-501.265825,0.00019618,2]
[396246453,1764874239449,-151.0,0.00019618,2]
[396246454,1764874239461,-151.0,0.00019618,2]
[396246455,1764874239470,-151.0,0.00019618,2]
[396246456,1764874239479,-269.775245,0.00019618,2]
[396246457,1764874239488,-151.0,0.00019618,2]
[396246458,1764874239497,-269.775245,0.00019618,2]
[396246459,1764874239506,-269.775245,0.00019618,2]
[396246460,1764874239515,-269.775245,0.00019618,2]
[396246461,1764874239523,-151.0,0.00019618,2]
[396246462,1764874239532,-151.0,0.00019618,2]
[396246463,1764874239541,-2134.92029,0.00019618,2]
[396246464,1764874239551,-2134.92029,0.00019618,2]
[396246465,1764874239560,-2134.92029,0.00019618,2]
[396246466,1764874239568,-2134.92029,0.00019618,2]
[396246467,1764874239577,-151.0,0.00019618,2]
[396246468,1764874239586,-155.338747,0.00019618,2]
[396246469,1764874239595,-209.707734,0.00019618,2]
[396246470,1764874239604,-211.983626,0.00019618,2]
[396246471,1764874239613,-209.707734,0.00019618,2]
[396246472,1764874239622,-211.983626,0.00019618,2]
[396246473,1764874239631,-209.707734,0.00019618,2]
[396246474,1764874239640,-211.983626,0.00019618,2]
[396246475,1764874239649,-209.707734,0.00019618,2]
[396246476,1764874239658,-211.983626,0.00019618,2]
[396246477,1764874239667,-151.0,0.00019618,2]
[396246478,1764874239675,-151.0,0.00019618,2]
[396246479,1764874239684,-151.0,0.00019618,2]
[396246480,1764874239695,-151.0,0.00019618,2]
[396246481,1764874239704,-151.0,0.00019618,2]
[396246482,1764874239713,-151.0,0.00019618,2]
[396246483,1764874239721,-153.818893,0.00019618,2]
[396246484,1764874239730,-151.0,0.00019618,2]
[396246485,1764874239739,-151.0,0.00019618,2]
[396246486,1764874239748,-151.0,0.00019618,2]
[396246487,1764874239757,-151.0,0.00019618,2]
[396246488,1764874239766,-151.0,0.00019618,2]
[396246489,1764874239777,-151.0,0.00019618,2]
[396246490,1764874239788,-151.0,0.00019618,2]
[396246491,1764874239797,-151.0,0.00019618,2]
[396246492,1764874239806,-151.0,0.00019618,2]
[396246493,1764874239815,-155.827054,0.00019618,2]
[396246494,1764874239824,-151.0,0.00019618,2]
[396246495,1764874239833,-151.0,0.00019618,2]
[396246496,1764874239843,-151.0,0.00019618,2]
[396246497,1764874239852,-151.0,0.00019618,2]
[396246498,1764874239861,-151.0,0.00019618,2]
[396246499,1764874239872,-151.0,0.00019618,2]
[396246500,1764874239881,-151.0,0.00019618,2]
[396246501,1764874239890,-151.0,0.00019618,2]
[396246502,1764874239899,-151.0,0.00019618,2]
[396246503,1764874239908,-151.0,0.00019618,2]
[396246504,1764874239917,-151.0,0.00019618,2]
[396246505,1764874239926,-151.0,0.00019618,2]
[396246506,1764874239936,-151.0,0.00019618,2]
[396246507,1764874239945,-151.0,0.00019618,2]
[396246508,1764874239955,-425.79103,0.00019618,2]
[396246509,1764874239964,-425.79103,0.00019618,2]
[396246510,1764874239973,-425.79103,0.00019618,2]
[396246511,1764874239982,-425.79103,0.00019618,2]
[396246512,1764874239992,-151.0,0.00019618,2]
[396246513,1764874240001,-151.0,0.00019618,2]
[396246514,1764874240011,-299.742894,0.00019618,2]
[396246516,1764874240020,-425.79103,0.00019618,2]
[396246517,1764874240028,-299.742894,0.00019618,2]
[396246518,1764874240037,-425.79103,0.00019618,2]
[396246519,1764874240047,-425.79103,0.00019618,2]
[396246520,1764874240056,-299.742894,0.00019618,2]
[396246521,1764874240066,-425.79103,0.00019618,2]
[396246524,1764874240075,-299.742894,0.00019618,2]
[396246525,1764874240084,-151.0,0.00019618,2]
[396246527,1764874240093,-151.0,0.00019618,2]
[396246529,1764874240103,-299.742894,0.00019618,2]
[396246531,1764874240117,-299.742894,0.00019618,2]
[396246533,1764874240126,-254.991436,0.00019618,2]
[396246535,1764874240135,-166.688411,0.00019619,2]
[396246537,1764874240145,-154.176637,0.00019619,2]
[396246539,1764874240155,-166.688411,0.00019619,2]
[396246541,1764874240164,-166.688411,0.00019619,2]
[396246543,1764874240173,-166.688411,0.00019619,2]
[396246545,1764874240183,-242.424619,0.00019619,2]
[396246547,1764874240202,-242.424619,0.00019619,2]
[396246549,1764874240223,-242.424619,0.00019619,2]
[396246551,1764874240232,-242.424619,0.00019619,2]
[396246553,1764874240241,-151.0,0.00019619,2]
[396246555,1764874240251,-151.0,0.00019619,2]
[396246557,1764874240260,-269.775245,0.00019619,2]
[396246560,1764874240271,-269.775245,0.00019619,2]
[396246562,1764874240280,-269.775245,0.00019619,2]
[396246563,1764874240289,-269.775245,0.00019619,2]
[396246566,1764874240299,-1478.22405976,0.0001963,3]
[396246568,1764874240308,-151.0,0.00019637,2]
[396246569,1764874240316,-154.280864,0.00019637,2]
[396246571,1764874240325,-151.0,0.00019637,2]
[396246573,1764874240334,-151.0,0.00019637,2]
[396246575,1764874240343,-214.387494,0.00019637,2]
[396246577,1764874240352,-151.0,0.00019637,2]
[396246579,1764874240362,-501.265825,0.00019637,2]
[396246581,1764874240371,-501.265825,0.00019637,2]
[396246583,1764874240380,-501.265825,0.00019637,2]
[396246585,1764874240390,-501.265825,0.00019637,2]
[396246587,1764874240400,-151.0,0.00019637,2]
[396246589,1764874240409,-151.0,0.00019637,2]
[396246591,1764874240418,-188.647377,0.00019637,2]
[396246593,1764874240428,-151.0,0.00019637,2]
[396246595,1764874240437,-2134.92029,0.00019637,2]
[396246597,1764874240446,-2134.92029,0.00019637,2]
[396246599,1764874240456,-2134.92029,0.00019637,2]
[396246601,1764874240466,-2134.92029,0.00019637,2]
[396246603,1764874240475,-151.0,0.00019637,2]
[396246605,1764874240484,-209.707734,0.00019637,2]
[396246607,1764874240493,-211.983626,0.00019637,2]
[396246609,1764874240502,-209.707734,0.00019637,2]
[396246611,1764874240511,-211.983626,0.00019637,2]
[396246613,1764874240520,-209.707734,0.00019637,2]
[396246615,1764874240529,-211.983626,0.00019637,2]
[396246617,1764874240538,-209.707734,0.00019637,2]
[396246619,1764874240549,-211.983626,0.00019637,2]
[396246621,1764874240559,-800.0,0.0001964,2]
[396246623,1764874240568,-800.0,0.00019641,2]
[396246625,1764874240577,-500.0,0.00019689,2]
[396246627,1764874240586,-6140.0,0.000197,2]
[396246629,1764874240595,-151.0,0.000197,2]
[396246631,1764874240604,-151.0,0.000197,2]
[396246633,1764874240620,-151.0,0.000197,2]
[396246635,1764874240629,-151.0,0.000197,2]
[396246637,1764874240639,-207.498726,0.000197,2]
[396246639,1764874240648,-207.498726,0.000197,2]
[396246641,1764874240657,-207.498726,0.000197,2]
[396246643,1764874240667,-207.498726,0.000197,2]
[396246645,1764874240676,-548.022411,0.000197,2]
[396246675,1764874240928,-548.022411,0.000197,2]
[396246677,1764874240937,-548.022411,0.000197,2]
[396246679,1764874240947,-548.022411,0.000197,2]
[396246681,1764874240956,-171.760845,0.000197,2]
[396246683,1764874240966,-171.760845,0.000197,2]
[396246685,1764874240975,-171.760845,0.000197,2]
[396246687,1764874240984,-151.0,0.000197,2]
[396246689,1764874240993,-171.760845,0.000197,2]
[396246691,1764874241002,-151.0,0.000197,2]
[396246693,1764874241011,-151.0,0.000197,2]
[396246695,1764874241020,-151.0,0.000197,2]
[396246697,1764874241029,-151.0,0.000197,2]
[396246699,1764874241038,-151.0,0.000197,2]
[396246701,1764874241047,-151.0,0.000197,2]
[396246703,1764874241057,-184.558497,0.000197,2]
[396246705,1764874241066,-151.0,0.000197,2]
[396246707,1764874241076,-151.0,0.000197,2]
[396246709,1764874241084,-151.0,0.00019709,2]
[396246711,1764874241094,-151.0,0.00019709,2]
[396246713,1764874241103,-151.0,0.00019709,2]
[396246714,1764874241116,-151.0,0.00019709,2]
[396246717,1764874241125,-151.0,0.00019709,2]
[396246718,1764874241134,-151.0,0.00019709,2]
[396246721,1764874241144,-151.0,0.00019709,2]
[396246723,1764874241154,-151.0,0.00019709,2]
[396246725,1764874241163,-151.0,0.00019709,2]
[396246726,1764874241173,-500.0,0.00019709,2]
[396246728,1764874241182,-151.0,0.00019709,2]
[396246730,1764874241196,-151.0,0.00019709,2]
[396246732,1764874241206,-500.0,0.00019709,2]
[396246734,1764874241215,-151.0,0.00019709,2]
[396246736,1764874241225,-151.0,0.00019709,2]
[396246738,1764874241235,-151.0,0.00019709,2]
[396246740,1764874241245,-151.0,0.00019709,2]
[396246742,1764874241255,-151.0,0.00019709,2]
[396246745,1764874241266,-151.0,0.00019709,2]
[396246747,1764874241276,-500.0,0.00019709,2]
[396246749,1764874241289,-500.0,0.00019709,2]
[396246751,1764874241299,-151.0,0.00019709,2]
[396246753,1764874241309,-151.0,0.00019709,2]
[396246755,1764874241319,-151.0,0.00019709,2]
[396246757,1764874241329,-555.28287019,0.00019719,2]
[396246759,1764874241340,-2663.35515478,0.0001972,2]
[396246761,1764874241350,-151.0,0.0001972,2]
[396246763,1764874241360,-151.0,0.0001972,2]
[396246765,1764874241370,-151.0,0.0001972,2]
[396246767,1764874241380,-151.0,0.0001972,2]
[396246769,1764874241390,-152.21826,0.0001972,2]
[396246771,1764874241400,-151.0,0.0001972,2]
[396246773,1764874241410,-151.0,0.0001972,2]
[396246775,1764874241420,-425.79103,0.0001972,2]
[396246777,1764874241432,-425.79103,0.0001972,2]
[396246779,1764874241442,-425.79103,0.0001972,2]
[396246782,1764874241452,-299.742894,0.0001972,2]
[396246783,1764874241462,-425.79103,0.0001972,2]
[396246786,1764874241472,-299.742894,0.0001972,2]
[396246788,1764874241482,-151.0,0.0001972,2]
[396246789,1764874241492,-299.742894,0.0001972,2]
[396246792,1764874241502,-250.0,0.00019726,2]
[396246794,1764874241511,-228.38931329,0.00019788,2]
[396246795,1764874241520,-500.0,0.00019793,2]
[396246798,1764874241531,-482.35078272,0.00019797,2]
[396246800,1764874241540,-500.0,0.00019797,2]
[396246801,1764874241550,-500.0,0.00019797,2]
[396246804,1764874241559,-151.0,0.000198,2]
[396246806,1764874241570,-800.0,0.00019822,2]
[396246807,1764874241580,-500.0,0.00019827,2]
[396246810,1764874241590,-500.0,0.00019827,2]
[396246812,1764874241599,-500.0,0.00019827,2]
[396246814,1764874241608,-494.29525753,0.00019827,2]
[396246816,1764874241617,-500.0,0.00019827,2]
[396246818,1764874241627,-500.0,0.00019827,2]
[396246820,1764874241636,-500.0,0.00019827,2]
[396246822,1764874241646,-356.63115453,0.00019827,2]
[396246824,1764874241655,-500.0,0.00019827,2]
[396246826,1764874241664,-500.0,0.00019827,2]
[396246828,1764874241673,-512.5598738,0.00019827,2]
[396246830,1764874241683,-151.0,0.00019827,2]
[396246832,1764874241692,-152.925494,0.00019827,2]
[396246834,1764874241701,-151.0,0.00019827,2]
[396246836,1764874241711,-269.775245,0.00019827,2]
[396246837,1764874241720,-151.0,0.00019827,2]
[396246839,1764874241729,-269.775245,0.00019827,2]
[396246841,1764874241739,-269.775245,0.00019827,2]
[396246843,1764874241747,-269.775245,0.00019827,2]
[396246845,1764874241757,-151.0,0.00019827,2]
[396246847,1764874241766,-2134.92029,0.00019827,2]
[396246849,1764874241775,-2134.92029,0.00019827,2]
[396246851,1764874241785,-2134.92029,0.00019827,2]
[396246853,1764874241794,-2134.92029,0.00019827,2]
[396246856,1764874241804,-151.0,0.00019827,2]
[396246858,1764874241813,-209.707734,0.00019827,2]
[396246860,1764874241823,-211.983626,0.00019827,2]
[396246862,1764874241832,-209.707734,0.00019827,2]
[396246864,1764874241841,-211.983626,0.00019827,2]